{"text_format":"1","workbook":"xlsx","n_sheets":3,"sheets":["Instructions utilisation","Techniques","Database"],"not_rendered":{"charts":0,"images":0,"macros":1,"external_links":0,"defined_names":10,"comments":0,"pivot_tables":0},"unopened":[],"bounds":{"document_bytes":16777216,"sheet_cells":100000,"rows_first":2000,"rows_last":500,"rows_between":2000,"halvings":0,"cell_chars":16384,"cell_head_chars":4096},"cells_cut":0,"cells_raw":0,"read":"whole","date_system":"1900"}

{"sheet":"Instructions utilisation","index":0,"n_rows":7,"n_cols":3,"rows_kept":7,"cut":false,"hidden":false,"merged":[]}
[]
[null,"1.","L'annexe 2 du GRPA v5 peut être utilisée pour 1 à 5 pollution(s) maximum. Il est nécessaire, dans un premier temps, d'indiquer le nombre de pollutions concernées dans la celulle D10, et ce afin que le nombre de colonnes s'ajuste automatiquement. Si plus de 5 pollutions sont considérées par un PA, il est alors nécessaire d'utiliser plusieurs copies de l'annexe 2 du GRPA v5."]
[null,"2.","Le nom de chaque pollution considérée doit ensuite être indiqué dans la celulle correspondante de la ligne 13."]
[null,"3.","L'expert peut ensuite indiquer si chaque type de techniques (\"HS\", \"ON\", etc.) est pertinent ou non pour chaque pollution considérée :\n- Si un type de technique n'est pas pertinent, il doit indiquer \"Non\" dans la colonne D, à à la ligne du nom de la catégorie et doit alors justifier ce choix dans la celulle corresondante de la colonne E (qui deviendra alors grisée) ;\n- Si, à l'inverse, un type de techniques est pertinent, il doit indiquer \"Oui\" dans la colonne D, à la ligne du nom de la catégorie. Toutes les techniques de la catégorie sont alors automatiquement indiquées comme pertinentes."]
[null,"4.","Dans le 2ème cas décrit ci-dessus, l'expert peut indiquer si certaines techniques de la catégorie ne sont pas pertinentes en indiquant \"Non\" dans la colonne D en face du nom de chaque technique. Il devra alors justifier ce choix dans la colonne E (les celulles en question deviendront alors grisées)."]
[null,"5.","Il n'est pas obligatoire mais possible d'indiquer des justifications pour des techniques jugées pertinentes."]
[null,"6.","Si l'expert souhaite proposer des techniques alternatives à celles proposées dans la liste présentée dans la colonne C, il doit indiquer le nombre de techniques qu'il souhaite proposer dans la celulle D11. Cela permettra un ajustement automatique du nombre de lignes présentes sous la catégorie \"AU\". L'expert peut alors nommer les techniques alternatives dans les celulles à partir de la C73 (les celulles deviennent alors grisées)."]

{"sheet":"Techniques","index":1,"n_rows":74,"n_cols":5,"rows_kept":74,"cut":false,"hidden":false,"merged":[[0,0,71,0],[0,13,71,13],[7,1,7,12],[5,1,5,12],[6,1,6,12],[4,1,4,12],[3,1,3,12],[2,1,2,12],[12,3,12,4],[1,1,1,12],[0,1,0,12],[12,5,12,6],[12,7,12,8],[12,9,12,10],[12,11,12,12]]}
[]
[null,"Annexe 2 - Justification des techniques jugées applicables"]
[]
[null,"La présente annexe du GRPA v5 permet à l'expert de passer en revue les techniques d'assainissement les plus couramment utilisées dans le domaine de l'assainissement des sols, et ce afin de justifier les techniques qu'il juge pertinentes ou non (cfr. paragraphe 3.3.3 du GRPA v5) dans le cadre de l'élaboration de variantes d'assainissement pertinentes, et ce en tenant compte du MCSC et des conditions et contraintes spécifiques du projet."]
[]
[null,"Bien que la présente annexe recense la liste des techniques couramment appliquées le domaine, il est néanmoins laissé à l’expert la liberté de proposer une technique alternative non mentionnée dans la liste, mais cette dernière devra être évaluée selon les modalités définies dans GAMMA et un descriptif sera fourni par l’expert afin de justifier la pertinence de retenir cette technique."]
[]
[null,"L'expert indique dans le tableau ci-dessous les types de techniques et techniques qu'il juge pertinents ou non, et ce pour les différentes pollutions à assainir sur le site. Il justifie les raisons pour lesquelles il estime que certaines techniques ne sont pas pertinentes."]
[]
[null,null,"Nombre de pollutions :",1]
[null,null,"Nombre de techniques alternatives poposées par l'expert :",0]
[]
[null,null,null,"Nom Pollution 1"]
[]
[null,"N°","Technique","Pertinente?","Justification"]
[]
[null,"HS","Techniques hors-site","Oui"]
[null,{"$f":"Database!F2","v":1},{"$f":"Database!G2","v":"Excavation et incinération"},"Oui"]
[null,{"$f":"Database!F3","v":2},{"$f":"Database!G3","v":"Excavation et traitement thermique"},"Oui"]
[null,{"$f":"Database!F4","v":3},{"$f":"Database!G4","v":"Excavation et traitement physico-chimique"},"Oui"]
[null,{"$f":"Database!F5","v":4},{"$f":"Database!G5","v":"Excavation et traitement biologique"},"Oui"]
[null,{"$f":"Database!F6","v":5},{"$f":"Database!G6","v":"Excavation et mise en décharge"},"Oui"]
[null,{"$f":"Database!F7","v":6},{"$f":"Database!G7","v":"Excavation et réutilisation"},"Oui"]
[null,{"$f":"Database!F8","v":7},{"$f":"Database!G8","v":"Excavation et pyrolyse"},"Oui"]
[]
[null,"ON","Techniques on site","Oui"]
[null,{"$f":"Database!F9","v":1},{"$f":"Database!G9","v":"Excavation et incinération"},"Oui"]
[null,{"$f":"Database!F10","v":2},{"$f":"Database!G10","v":"Excavation et traitement thermique"},"Oui"]
[null,{"$f":"Database!F11","v":3},{"$f":"Database!G11","v":"Excavation et traitement physico-chimique"},"Oui"]
[null,{"$f":"Database!F12","v":4},{"$f":"Database!G12","v":"Excavation et traitement biologique"},"Oui"]
[null,{"$f":"Database!F13","v":5},{"$f":"Database!G13","v":"Excavation et encapsulation sur site"},"Oui"]
[null,{"$f":"Database!F14","v":6},{"$f":"Database!G14","v":"Excavation et compostage, landfarming"},"Oui"]
[null,{"$f":"Database!F15","v":7},{"$f":"Database!G15","v":"Excavation et biopile"},"Oui"]
[null,{"$f":"Database!F16","v":8},{"$f":"Database!G16","v":"Excavation et lavage à l'eau"},"Oui"]
[]
[null,"IS","Techniques in situ","Oui"]
[null,{"$f":"Database!F17","v":1},{"$f":"Database!G17","v":"Confinement par couverture et étanchéification"},"Oui"]
[null,{"$f":"Database!F18","v":2},{"$f":"Database!G18","v":"Lavage de sol"},"Oui"]
[null,{"$f":"Database!F19","v":3},{"$f":"Database!G19","v":"Biostimulation/biodégradation/précipitation accélérée in situ"},"Oui"]
[null,{"$f":"Database!F20","v":4},{"$f":"Database!G20","v":"Réduction chimique in situ"},"Oui"]
[null,{"$f":"Database!F21","v":5},{"$f":"Database!G21","v":"Oxydation chimique in situ"},"Oui"]
[null,{"$f":"Database!F22","v":6},{"$f":"Database!G22","v":"Extraction multiphase"},"Oui"]
[null,{"$f":"Database!F23","v":7},{"$f":"Database!G23","v":"SVE (Soil Vapor Extraction)"},"Oui"]
[null,{"$f":"Database!F24","v":8},{"$f":"Database!G24","v":"Air sparging, bioventing"},"Oui"]
[null,{"$f":"Database!F25","v":9},{"$f":"Database!G25","v":"Phytoremédiation in situ"},"Oui"]
[null,{"$f":"Database!F26","v":10},{"$f":"Database!G26","v":"Vitrification in situ"},"Oui"]
[null,{"$f":"Database!F27","v":11},{"$f":"Database!G27","v":"Solidification"},"Oui"]
[null,{"$f":"Database!F28","v":12},{"$f":"Database!G28","v":"Stabilisation chimique"},"Oui"]
[null,{"$f":"Database!F29","v":13},{"$f":"Database!G29","v":"Désorption thermique in situ par injection de vapeur"},"Oui"]
[null,{"$f":"Database!F30","v":14},{"$f":"Database!G30","v":"Désorption thermique in situ pas six phases heating ou électrocinétique"},"Oui"]
[null,{"$f":"Database!F31","v":15},{"$f":"Database!G31","v":"Désorption thermique in situ par conduction de chaleur"},"Oui"]
[null,{"$f":"Database!F32","v":16},{"$f":"Database!G32","v":"Soil mixing + combinaison technique in situ"},"Oui"]
[null,{"$f":"Database!F33","v":17},{"$f":"Database!G33","v":"Combustion in situ"},"Oui"]
[]
[null,"E","Techniques eau","-"]
[null,{"$f":"Database!F34","v":1},{"$f":"Database!G34","v":"Confinement physique"},"Oui"]
[null,{"$f":"Database!F35","v":2},{"$f":"Database!G35","v":"Confinement hydraulique"},"Oui"]
[null,{"$f":"Database!F36","v":3},{"$f":"Database!G36","v":"Pompage et traitement - Zone source"},"Oui"]
[null,{"$f":"Database!F37","v":4},{"$f":"Database!G37","v":"Pompage et traitement - Fracturing"},"Oui"]
[null,{"$f":"Database!F38","v":5},{"$f":"Database!G38","v":"Groundwater circulation wells"},"Oui"]
[null,{"$f":"Database!F39","v":6},{"$f":"Database!G39","v":"Réduction chimique in situ"},"Oui"]
[null,{"$f":"Database!F40","v":7},{"$f":"Database!G40","v":"Oxydation chimique in situ"},"Oui"]
[null,{"$f":"Database!F41","v":8},{"$f":"Database!G41","v":"Lavage in situ (pompage et injection)"},"Oui"]
[null,{"$f":"Database!F42","v":9},{"$f":"Database!G42","v":"Barrière perméable réactive"},"Oui"]
[null,{"$f":"Database!F43","v":10},{"$f":"Database!G43","v":"Extraction multi-phases"},"Oui"]
[null,{"$f":"Database!F44","v":11},{"$f":"Database!G44","v":"Désoprtion thermique"},"Oui"]
[null,{"$f":"Database!F45","v":12},{"$f":"Database!G45","v":"Biosparging, in-well air stripping"},"Oui"]
[null,{"$f":"Database!F46","v":13},{"$f":"Database!G46","v":"Biodégradation accélérée"},"Oui"]
[null,{"$f":"Database!F47","v":14},{"$f":"Database!G47","v":"Atténuation naturelle contrôlée"},"Oui"]
[null,{"$f":"Database!F48","v":15},{"$f":"Database!G48","v":"Phytoremédiation"},"Oui"]
[]
[null,"AU","Autres (techniques proposées par l'expert)"]
[null,1,null,"Non"]
[null,null,{"$f":"ROW()","v":74}]

{"sheet":"Database","index":2,"n_rows":485,"n_cols":13,"rows_kept":485,"cut":false,"hidden":false,"merged":[]}
[null,"Code","Name",null,"TechniqueCode","SortOrderWithinGroup","Name",null,"Option"]
[null,"HS","Techniques hors-site",null,"HS",1,"Excavation et incinération",null,"Oui",null,"Relevant",null,"Value can not be empty."]
[null,"ON","Techniques on site",null,"HS",2,"Excavation et traitement thermique",null,"Non",null,"Valid",null,"Value is not numeric."]
[null,"IS","Techniques in situ",null,"HS",3,"Excavation et traitement physico-chimique",null,null,null,"Optional",null,"The first pollution must have a name."]
[null,"E","Techniques eau",null,"HS",4,"Excavation et traitement biologique",null,null,null,"Required"]
[null,"AU","Autres",null,"HS",5,"Excavation et mise en décharge"]
[null,null,null,null,"HS",6,"Excavation et réutilisation"]
[null,null,null,null,"HS",7,"Excavation et pyrolyse"]
[null,null,null,null,"ON",1,"Excavation et incinération"]
[null,null,null,null,"ON",2,"Excavation et traitement thermique"]
[null,null,null,null,"ON",3,"Excavation et traitement physico-chimique"]
[null,null,null,null,"ON",4,"Excavation et traitement biologique"]
[null,null,null,null,"ON",5,"Excavation et encapsulation sur site"]
[null,null,null,null,"ON",6,"Excavation et compostage, landfarming"]
[null,null,null,null,"ON",7,"Excavation et biopile"]
[null,null,null,null,"ON",8,"Excavation et lavage à l'eau"]
[null,null,null,null,"IS",1,"Confinement par couverture et étanchéification"]
[null,null,null,null,"IS",2,"Lavage de sol"]
[null,null,null,null,"IS",3,"Biostimulation/biodégradation/précipitation accélérée in situ"]
[null,null,null,null,"IS",4,"Réduction chimique in situ"]
[null,null,null,null,"IS",5,"Oxydation chimique in situ"]
[null,null,null,null,"IS",6,"Extraction multiphase"]
[null,null,null,null,"IS",7,"SVE (Soil Vapor Extraction)"]
[null,null,null,null,"IS",8,"Air sparging, bioventing"]
[null,null,null,null,"IS",9,"Phytoremédiation in situ"]
[null,null,null,null,"IS",10,"Vitrification in situ"]
[null,null,null,null,"IS",11,"Solidification"]
[null,null,null,null,"IS",12,"Stabilisation chimique"]
[null,null,null,null,"IS",13,"Désorption thermique in situ par injection de vapeur"]
[null,null,null,null,"IS",14,"Désorption thermique in situ pas six phases heating ou électrocinétique"]
[null,null,null,null,"IS",15,"Désorption thermique in situ par conduction de chaleur"]
[null,null,null,null,"IS",16,"Soil mixing + combinaison technique in situ"]
[null,null,null,null,"IS",17,"Combustion in situ"]
[null,null,null,null,"E",1,"Confinement physique"]
[null,null,null,null,"E",2,"Confinement hydraulique"]
[null,null,null,null,"E",3,"Pompage et traitement - Zone source"]
[null,null,null,null,"E",4,"Pompage et traitement - Fracturing"]
[null,null,null,null,"E",5,"Groundwater circulation wells"]
[null,null,null,null,"E",6,"Réduction chimique in situ"]
[null,null,null,null,"E",7,"Oxydation chimique in situ"]
[null,null,null,null,"E",8,"Lavage in situ (pompage et injection)"]
[null,null,null,null,"E",9,"Barrière perméable réactive"]
[null,null,null,null,"E",10,"Extraction multi-phases"]
[null,null,null,null,"E",11,"Désoprtion thermique"]
[null,null,null,null,"E",12,"Biosparging, in-well air stripping"]
[null,null,null,null,"E",13,"Biodégradation accélérée"]
[null,null,null,null,"E",14,"Atténuation naturelle contrôlée"]
[null,null,null,null,"E",15,"Phytoremédiation"]
[null,null,null,null,"AU",1,{"$f":"INDIRECT(_xlfn.CONCAT(\"Techniques!C73:C\" &LastRow-1))","v":0}]
[null,null,null,null,"AU",2]
[null,null,null,null,"AU",3]
[null,null,null,null,"AU",4]
[null,null,null,null,"AU",5]
[null,null,null,null,"AU",6]
[null,null,null,null,"AU",7]
[null,null,null,null,"AU",8]
[null,null,null,null,"AU",9]
[null,null,null,null,"AU",10]
[null,null,null,null,"AU",11]
[null,null,null,null,"AU",12]
[null,null,null,null,"AU",13]
[null,null,null,null,"AU",14]
[null,null,null,null,"AU",15]
[null,null,null,null,"AU",16]
[null,null,null,null,"AU",17]
[null,null,null,null,"AU",18]
[null,null,null,null,"AU",19]
[null,null,null,null,"AU",20]
[null,null,null,null,"AU",21]
[null,null,null,null,"AU",22]
[null,null,null,null,"AU",23]
[null,null,null,null,"AU",24]
[null,null,null,null,"AU",25]
[null,null,null,null,"AU",26]
[null,null,null,null,"AU",27]
[null,null,null,null,"AU",28]
[null,null,null,null,"AU",29]
[null,null,null,null,"AU",30]
[null,null,null,null,"AU",31]
[null,null,null,null,"AU",32]
[null,null,null,null,"AU",33]
[null,null,null,null,"AU",34]
[null,null,null,null,"AU",35]
[null,null,null,null,"AU",36]
[null,null,null,null,"AU",37]
[null,null,null,null,"AU",38]
[null,null,null,null,"AU",39]
[null,null,null,null,"AU",40]
[null,null,null,null,"AU",41]
[null,null,null,null,"AU",42]
[null,null,null,null,"AU",43]
[null,null,null,null,"AU",44]
[null,null,null,null,"AU",45]
[null,null,null,null,"AU",46]
[null,null,null,null,"AU",47]
[null,null,null,null,"AU",48]
[null,null,null,null,"AU",49]
[null,null,null,null,"AU",50]
[null,null,null,null,"AU",51]
[null,null,null,null,"AU",52]
[null,null,null,null,"AU",53]
[null,null,null,null,"AU",54]
[null,null,null,null,"AU",55]
[null,null,null,null,"AU",56]
[null,null,null,null,"AU",57]
[null,null,null,null,"AU",58]
[null,null,null,null,"AU",59]
[null,null,null,null,"AU",60]
[null,null,null,null,"AU",61]
[null,null,null,null,"AU",62]
[null,null,null,null,"AU",63]
[null,null,null,null,"AU",64]
[null,null,null,null,"AU",65]
[null,null,null,null,"AU",66]
[null,null,null,null,"AU",67]
[null,null,null,null,"AU",68]
[null,null,null,null,"AU",69]
[null,null,null,null,"AU",70]
[null,null,null,null,"AU",71]
[null,null,null,null,"AU",72]
[null,null,null,null,"AU",73]
[null,null,null,null,"AU",74]
[null,null,null,null,"AU",75]
[null,null,null,null,"AU",76]
[null,null,null,null,"AU",77]
[null,null,null,null,"AU",78]
[null,null,null,null,"AU",79]
[null,null,null,null,"AU",80]
[null,null,null,null,"AU",81]
[null,null,null,null,"AU",82]
[null,null,null,null,"AU",83]
[null,null,null,null,"AU",84]
[null,null,null,null,"AU",85]
[null,null,null,null,"AU",86]
[null,null,null,null,"AU",87]
[null,null,null,null,"AU",88]
[null,null,null,null,"AU",89]
[null,null,null,null,"AU",90]
[null,null,null,null,"AU",91]
[null,null,null,null,"AU",92]
[null,null,null,null,"AU",93]
[null,null,null,null,"AU",94]
[null,null,null,null,"AU",95]
[null,null,null,null,"AU",96]
[null,null,null,null,"AU",97]
[null,null,null,null,"AU",98]
[null,null,null,null,"AU",99]
[null,null,null,null,"AU",100]
[null,null,null,null,"AU",101]
[null,null,null,null,"AU",102]
[null,null,null,null,"AU",103]
[null,null,null,null,"AU",104]
[null,null,null,null,"AU",105]
[null,null,null,null,"AU",106]
[null,null,null,null,"AU",107]
[null,null,null,null,"AU",108]
[null,null,null,null,"AU",109]
[null,null,null,null,"AU",110]
[null,null,null,null,"AU",111]
[null,null,null,null,"AU",112]
[null,null,null,null,"AU",113]
[null,null,null,null,"AU",114]
[null,null,null,null,"AU",115]
[null,null,null,null,"AU",116]
[null,null,null,null,"AU",117]
[null,null,null,null,"AU",118]
[null,null,null,null,"AU",119]
[null,null,null,null,"AU",120]
[null,null,null,null,"AU",121]
[null,null,null,null,"AU",122]
[null,null,null,null,"AU",123]
[null,null,null,null,"AU",124]
[null,null,null,null,"AU",125]
[null,null,null,null,"AU",126]
[null,null,null,null,"AU",127]
[null,null,null,null,"AU",128]
[null,null,null,null,"AU",129]
[null,null,null,null,"AU",130]
[null,null,null,null,"AU",131]
[null,null,null,null,"AU",132]
[null,null,null,null,"AU",133]
[null,null,null,null,"AU",134]
[null,null,null,null,"AU",135]
[null,null,null,null,"AU",136]
[null,null,null,null,"AU",137]
[null,null,null,null,"AU",138]
[null,null,null,null,"AU",139]
[null,null,null,null,"AU",140]
[null,null,null,null,"AU",141]
[null,null,null,null,"AU",142]
[null,null,null,null,"AU",143]
[null,null,null,null,"AU",144]
[null,null,null,null,"AU",145]
[null,null,null,null,"AU",146]
[null,null,null,null,"AU",147]
[null,null,null,null,"AU",148]
[null,null,null,null,"AU",149]
[null,null,null,null,"AU",150]
[null,null,null,null,"AU",151]
[null,null,null,null,"AU",152]
[null,null,null,null,"AU",153]
[null,null,null,null,"AU",154]
[null,null,null,null,"AU",155]
[null,null,null,null,"AU",156]
[null,null,null,null,"AU",157]
[null,null,null,null,"AU",158]
[null,null,null,null,"AU",159]
[null,null,null,null,"AU",160]
[null,null,null,null,"AU",161]
[null,null,null,null,"AU",162]
[null,null,null,null,"AU",163]
[null,null,null,null,"AU",164]
[null,null,null,null,"AU",165]
[null,null,null,null,"AU",166]
[null,null,null,null,"AU",167]
[null,null,null,null,"AU",168]
[null,null,null,null,"AU",169]
[null,null,null,null,"AU",170]
[null,null,null,null,"AU",171]
[null,null,null,null,"AU",172]
[null,null,null,null,"AU",173]
[null,null,null,null,"AU",174]
[null,null,null,null,"AU",175]
[null,null,null,null,"AU",176]
[null,null,null,null,"AU",177]
[null,null,null,null,"AU",178]
[null,null,null,null,"AU",179]
[null,null,null,null,"AU",180]
[null,null,null,null,"AU",181]
[null,null,null,null,"AU",182]
[null,null,null,null,"AU",183]
[null,null,null,null,"AU",184]
[null,null,null,null,"AU",185]
[null,null,null,null,"AU",186]
[null,null,null,null,"AU",187]
[null,null,null,null,"AU",188]
[null,null,null,null,"AU",189]
[null,null,null,null,"AU",190]
[null,null,null,null,"AU",191]
[null,null,null,null,"AU",192]
[null,null,null,null,"AU",193]
[null,null,null,null,"AU",194]
[null,null,null,null,"AU",195]
[null,null,null,null,"AU",196]
[null,null,null,null,"AU",197]
[null,null,null,null,"AU",198]
[null,null,null,null,"AU",199]
[null,null,null,null,"AU",200]
[null,null,null,null,"AU",201]
[null,null,null,null,"AU",202]
[null,null,null,null,"AU",203]
[null,null,null,null,"AU",204]
[null,null,null,null,"AU",205]
[null,null,null,null,"AU",206]
[null,null,null,null,"AU",207]
[null,null,null,null,"AU",208]
[null,null,null,null,"AU",209]
[null,null,null,null,"AU",210]
[null,null,null,null,"AU",211]
[null,null,null,null,"AU",212]
[null,null,null,null,"AU",213]
[null,null,null,null,"AU",214]
[null,null,null,null,"AU",215]
[null,null,null,null,"AU",216]
[null,null,null,null,"AU",217]
[null,null,null,null,"AU",218]
[null,null,null,null,"AU",219]
[null,null,null,null,"AU",220]
[null,null,null,null,"AU",221]
[null,null,null,null,"AU",222]
[null,null,null,null,"AU",223]
[null,null,null,null,"AU",224]
[null,null,null,null,"AU",225]
[null,null,null,null,"AU",226]
[null,null,null,null,"AU",227]
[null,null,null,null,"AU",228]
[null,null,null,null,"AU",229]
[null,null,null,null,"AU",230]
[null,null,null,null,"AU",231]
[null,null,null,null,"AU",232]
[null,null,null,null,"AU",233]
[null,null,null,null,"AU",234]
[null,null,null,null,"AU",235]
[null,null,null,null,"AU",236]
[null,null,null,null,"AU",237]
[null,null,null,null,"AU",238]
[null,null,null,null,"AU",239]
[null,null,null,null,"AU",240]
[null,null,null,null,"AU",241]
[null,null,null,null,"AU",242]
[null,null,null,null,"AU",243]
[null,null,null,null,"AU",244]
[null,null,null,null,"AU",245]
[null,null,null,null,"AU",246]
[null,null,null,null,"AU",247]
[null,null,null,null,"AU",248]
[null,null,null,null,"AU",249]
[null,null,null,null,"AU",250]
[null,null,null,null,"AU",251]
[null,null,null,null,"AU",252]
[null,null,null,null,"AU",253]
[null,null,null,null,"AU",254]
[null,null,null,null,"AU",255]
[null,null,null,null,"AU",256]
[null,null,null,null,"AU",257]
[null,null,null,null,"AU",258]
[null,null,null,null,"AU",259]
[null,null,null,null,"AU",260]
[null,null,null,null,"AU",261]
[null,null,null,null,"AU",262]
[null,null,null,null,"AU",263]
[null,null,null,null,"AU",264]
[null,null,null,null,"AU",265]
[null,null,null,null,"AU",266]
[null,null,null,null,"AU",267]
[null,null,null,null,"AU",268]
[null,null,null,null,"AU",269]
[null,null,null,null,"AU",270]
[null,null,null,null,"AU",271]
[null,null,null,null,"AU",272]
[null,null,null,null,"AU",273]
[null,null,null,null,"AU",274]
[null,null,null,null,"AU",275]
[null,null,null,null,"AU",276]
[null,null,null,null,"AU",277]
[null,null,null,null,"AU",278]
[null,null,null,null,"AU",279]
[null,null,null,null,"AU",280]
[null,null,null,null,"AU",281]
[null,null,null,null,"AU",282]
[null,null,null,null,"AU",283]
[null,null,null,null,"AU",284]
[null,null,null,null,"AU",285]
[null,null,null,null,"AU",286]
[null,null,null,null,"AU",287]
[null,null,null,null,"AU",288]
[null,null,null,null,"AU",289]
[null,null,null,null,"AU",290]
[null,null,null,null,"AU",291]
[null,null,null,null,"AU",292]
[null,null,null,null,"AU",293]
[null,null,null,null,"AU",294]
[null,null,null,null,"AU",295]
[null,null,null,null,"AU",296]
[null,null,null,null,"AU",297]
[null,null,null,null,"AU",298]
[null,null,null,null,"AU",299]
[null,null,null,null,"AU",300]
[null,null,null,null,"AU",301]
[null,null,null,null,"AU",302]
[null,null,null,null,"AU",303]
[null,null,null,null,"AU",304]
[null,null,null,null,"AU",305]
[null,null,null,null,"AU",306]
[null,null,null,null,"AU",307]
[null,null,null,null,"AU",308]
[null,null,null,null,"AU",309]
[null,null,null,null,"AU",310]
[null,null,null,null,"AU",311]
[null,null,null,null,"AU",312]
[null,null,null,null,"AU",313]
[null,null,null,null,"AU",314]
[null,null,null,null,"AU",315]
[null,null,null,null,"AU",316]
[null,null,null,null,"AU",317]
[null,null,null,null,"AU",318]
[null,null,null,null,"AU",319]
[null,null,null,null,"AU",320]
[null,null,null,null,"AU",321]
[null,null,null,null,"AU",322]
[null,null,null,null,"AU",323]
[null,null,null,null,"AU",324]
[null,null,null,null,"AU",325]
[null,null,null,null,"AU",326]
[null,null,null,null,"AU",327]
[null,null,null,null,"AU",328]
[null,null,null,null,"AU",329]
[null,null,null,null,"AU",330]
[null,null,null,null,"AU",331]
[null,null,null,null,"AU",332]
[null,null,null,null,"AU",333]
[null,null,null,null,"AU",334]
[null,null,null,null,"AU",335]
[null,null,null,null,"AU",336]
[null,null,null,null,"AU",337]
[null,null,null,null,"AU",338]
[null,null,null,null,"AU",339]
[null,null,null,null,"AU",340]
[null,null,null,null,"AU",341]
[null,null,null,null,"AU",342]
[null,null,null,null,"AU",343]
[null,null,null,null,"AU",344]
[null,null,null,null,"AU",345]
[null,null,null,null,"AU",346]
[null,null,null,null,"AU",347]
[null,null,null,null,"AU",348]
[null,null,null,null,"AU",349]
[null,null,null,null,"AU",350]
[null,null,null,null,"AU",351]
[null,null,null,null,"AU",352]
[null,null,null,null,"AU",353]
[null,null,null,null,"AU",354]
[null,null,null,null,"AU",355]
[null,null,null,null,"AU",356]
[null,null,null,null,"AU",357]
[null,null,null,null,"AU",358]
[null,null,null,null,"AU",359]
[null,null,null,null,"AU",360]
[null,null,null,null,"AU",361]
[null,null,null,null,"AU",362]
[null,null,null,null,"AU",363]
[null,null,null,null,"AU",364]
[null,null,null,null,"AU",365]
[null,null,null,null,"AU",366]
[null,null,null,null,"AU",367]
[null,null,null,null,"AU",368]
[null,null,null,null,"AU",369]
[null,null,null,null,"AU",370]
[null,null,null,null,"AU",371]
[null,null,null,null,"AU",372]
[null,null,null,null,"AU",373]
[null,null,null,null,"AU",374]
[null,null,null,null,"AU",375]
[null,null,null,null,"AU",376]
[null,null,null,null,"AU",377]
[null,null,null,null,"AU",378]
[null,null,null,null,"AU",379]
[null,null,null,null,"AU",380]
[null,null,null,null,"AU",381]
[null,null,null,null,"AU",382]
[null,null,null,null,"AU",383]
[null,null,null,null,"AU",384]
[null,null,null,null,"AU",385]
[null,null,null,null,"AU",386]
[null,null,null,null,"AU",387]
[null,null,null,null,"AU",388]
[null,null,null,null,"AU",389]
[null,null,null,null,"AU",390]
[null,null,null,null,"AU",391]
[null,null,null,null,"AU",392]
[null,null,null,null,"AU",393]
[null,null,null,null,"AU",394]
[null,null,null,null,"AU",395]
[null,null,null,null,"AU",396]
[null,null,null,null,"AU",397]
[null,null,null,null,"AU",398]
[null,null,null,null,"AU",399]
[null,null,null,null,"AU",400]
[null,null,null,null,"AU",401]
[null,null,null,null,"AU",402]
[null,null,null,null,"AU",403]
[null,null,null,null,"AU",404]
[null,null,null,null,"AU",405]
[null,null,null,null,"AU",406]
[null,null,null,null,"AU",407]
[null,null,null,null,"AU",408]
[null,null,null,null,"AU",409]
[null,null,null,null,"AU",410]
[null,null,null,null,"AU",411]
[null,null,null,null,"AU",412]
[null,null,null,null,"AU",413]
[null,null,null,null,"AU",414]
[null,null,null,null,"AU",415]
[null,null,null,null,"AU",416]
[null,null,null,null,"AU",417]
[null,null,null,null,"AU",418]
[null,null,null,null,"AU",419]
[null,null,null,null,"AU",420]
[null,null,null,null,"AU",421]
[null,null,null,null,"AU",422]
[null,null,null,null,"AU",423]
[null,null,null,null,"AU",424]
[null,null,null,null,"AU",425]
[null,null,null,null,"AU",426]
[null,null,null,null,"AU",427]
[null,null,null,null,"AU",428]
[null,null,null,null,"AU",429]
[null,null,null,null,"AU",430]
[null,null,null,null,"AU",431]
[null,null,null,null,"AU",432]
[null,null,null,null,"AU",433]
[null,null,null,null,"AU",434]
[null,null,null,null,"AU",435]
[null,null,null,null,"AU",436]
[null,null,null,null,"AU",437]